Cogmind - Beta 14 @@@ ROGUE MODE // 2024.10.06 @ 22:49:28 Player: APerTAS Result: Core destroyed Performance ------------- Evolutions (6) 3000 Regions Visited (8) 1600 Robots Destroyed (1) 5 Value Destroyed (5) 5 Prototype IDs (0) 0 Alien Tech Used (0) 0 Bonus (834) 834 TOTAL SCORE: 5444 Bonus ------- Pacifist 834 Cogmind --------- Core Integrity 0/1150 Matter 300/300 Energy 100/100 System Corruption 5% Temperature Cool (0) Movement Core (50) Location -4/Upper Caves Parts ------- > --- POWER (1) -------- (None) > --- PROPULSION (2) --- (None) > --- UTILITY (2) ------ (None) > --- WEAPON (14) ------ (None) > --- INVENTORY (5) ---- (None) Peak State ------------ None Favorites ----------- Power None Propulsion None Utility None Weapon None Build | -11 -10 -9 -8 -7 -6 -5 -4 -4 ------- Run | Yrd Mat Mat Mat Fac Fac Fac Fac Upp Slots Evolved 12 | . . 2 2 2 2 2 2 . Power . | . . . . . . . . . Propulsion . | . . . . . . . . . Utility . | . . . . . . . . . Weapon 12 | . . 2 2 2 2 2 2 . Parts Attached . | . . . . . . . . . Power . | . . . . . . . . . Engine . | . . . . . . . . . Core . | . . . . . . . . . Reactor . | . . . . . . . . . Propulsion . | . . . . . . . . . Treads . | . . . . . . . . . Leg . | . . . . . . . . . Wheel . | . . . . . . . . . Hover . | . . . . . . . . . Flight . | . . . . . . . . . Utility . | . . . . . . . . . Device . | . . . . . . . . . Storage . | . . . . . . . . . Processor . | . . . . . . . . . Hackware . | . . . . . . . . . Protection . | . . . . . . . . . Artifact . | . . . . . . . . . Weapon . | . . . . . . . . . Energy Gun . | . . . . . . . . . Energy Cannon . | . . . . . . . . . Ballistic Gun . | . . . . . . . . . Ballistic Cannon . | . . . . . . . . . Launcher . | . . . . . . . . . Special Weapon . | . . . . . . . . . Impact Weapon . | . . . . . . . . . Slashing Weapon . | . . . . . . . . . Piercing Weapon . | . . . . . . . . . Special Melee Weapon . | . . . . . . . . . Unidentified Prototypes . | . . . . . . . . . Parts Lost . | . . . . . . . . . Power . | . . . . . . . . . Propulsion . | . . . . . . . . . Utility . | . . . . . . . . . Weapon . | . . . . . . . . . Highest Loss Streak . | . . . . . . . . . To Critical Strikes . | . . . . . . . . . Average Slot Usage (%) . | . . . . . . . . . Peak Build Rating . | . . . . . . . . . Average Rating . | . . . . . . . . . On Entrance . | . . . . . . . . . Naked Turns 805 | . 35 73 70 87 368 56 73 43 Heaviest Build . | . . . . . . . . . Greatest Support 3 | 3 3 3 3 3 3 3 3 3 Greatest Overweight (x) . | . . . . . . . . . Average Overweight (x) . | . . . . . . . . . Largest Inventory Capacity 5 | 5 5 5 5 5 5 5 5 5 Average Capacity 5 | 5 5 5 5 5 5 5 5 5 Most Carried . | . . . . . . . . . Average Carried . | . . . . . . . . . Final Capacity 5 | 5 5 5 5 5 5 5 5 5 Final Carried . | . . . . . . . . . Class Distribution -------------------- 100% | Mutant Dominant Class ---------------- Mutant | -10/Materials Mutant | -9/Materials Mutant | -8/Materials Mutant | -7/Factory Mutant | -6/Factory Mutant | -5/Factory Mutant | -4/Factory Mutant | -4/Upper Caves Resources | -11 -10 -9 -8 -7 -6 -5 -4 -4 ----------- Run | Yrd Mat Mat Mat Fac Fac Fac Fac Upp Matter Collected 66 | . . . . 27 21 . . 18 Remotely . | . . . . . . . . . Salvage Created 27 | . . . . 27 . . . . Parts 6 | . . . . 6 . . . . Haulers Intercepted . | . . . . . . . . . Recyclers Shooed . | . . . . . . . . . Parts Field Recycled . | . . . . . . . . . Retrieved Matter . | . . . . . . . . . Parts Self-Destructed . | . . . . . . . . . Prevented . | . . . . . . . . . Kills | -11 -10 -9 -8 -7 -6 -5 -4 -4 ------- Run | Yrd Mat Mat Mat Fac Fac Fac Fac Upp Combat Hostiles Destroyed . | . . . . . . . . . Classes Destroyed 1 | . . . . 1 . . . . Builder 1 | . . . . 1 . . . . Best Kill Streak 1 | . . . . 1 . . . . Combat Bots Only . | . . . . . . . . . Max Kills in Single Turn 1 | . . . . 1 . . . . Gunslinging . | . . . . . . . . . Exploded . | . . . . . . . . . Melee . | . . . . . . . . . Uniques/NPCs Destroyed . | . . . . . . . . . Combat | -11 -10 -9 -8 -7 -6 -5 -4 -4 -------- Run | Yrd Mat Mat Mat Fac Fac Fac Fac Upp Hostile Shots Fired 240 | . 16 12 38 25 51 4 47 47 Missed 89 | . 9 6 14 9 20 . 13 18 Damage Taken 2708 | . 173 74 287 333 584 81 548 628 Core 2708 | . 173 74 287 333 584 81 548 628 Absorbed by Shields 24 | . . . . . 24 . . . Core Remaining (%) 61 | 100 30 81 47 52 31 91 . . Volleys Fired . | . . . . . . . . . Largest . | . . . . . . . . . Hottest . | . . . . . . . . . Shots Fired . | . . . . . . . . . Gun . | . . . . . . . . . Cannon . | . . . . . . . . . Launcher . | . . . . . . . . . Special . | . . . . . . . . . Kinetic . | . . . . . . . . . Thermal . | . . . . . . . . . Explosive . | . . . . . . . . . Electromagnetic . | . . . . . . . . . Robot Hit Streak . | . . . . . . . . . Robot Miss Streak . | . . . . . . . . . Penetration Max . | . . . . . . . . . Secondary Targets . | . . . . . . . . . Shots Hit Robots . | . . . . . . . . . Core Hits 4 | . . . . 3 . 1 . . Critical Kills . | . . . . . . . . . Critical Parts Destroyed . | . . . . . . . . . Critical Strikes . | . . . . . . . . . Melee Attacks . | . . . . . . . . . Impact . | . . . . . . . . . Slashing . | . . . . . . . . . Piercing . | . . . . . . . . . Sneak Attacks . | . . . . . . . . . Combat Hostiles . | . . . . . . . . . Follow-up Attacks . | . . . . . . . . . Damage Inflicted 192 | . 4 . . 92 64 8 . 24 Guns . | . . . . . . . . . Cannons . | . . . . . . . . . Explosions . | . . . . . . . . . Melee . | . . . . . . . . . Ramming 192 | . 4 . . 92 64 8 . 24 Kinetic . | . . . . . . . . . Thermal . | . . . . . . . . . Explosive . | . . . . . . . . . Electromagnetic . | . . . . . . . . . Impact . | . . . . . . . . . Slashing . | . . . . . . . . . Piercing . | . . . . . . . . . Highest Corruption 5 | . . . . 1 5 . . 5 Average Corruption 3 | . . . . 1 4 . . 1 Corruption Purged . | . . . . . . . . . Corruption Blocked . | . . . . . . . . . Effects 2 | . . . . . 2 . . . Matter Fused 2 | . . . . . 2 . . . Overload Shots . | . . . . . . . . . Overflow Damage . | . . . . . . . . . Projectiles . | . . . . . . . . . Explosions . | . . . . . . . . . Melee . | . . . . . . . . . Knockbacks 3 | . . . . 1 2 . . . Impact 3 | . . . . 1 2 . . . Kinetic . | . . . . . . . . . Secondary . | . . . . . . . . . Self-Inflicted Damage 100 | . 1 . . 42 29 4 . 24 Shots . | . . . . . . . . . Rammed 44 | . 3 . . 25 15 1 . . Targets Rammed 44 | . 3 . . 25 15 1 . . Kicked . | . . . . . . . . . Crushed . | . . . . . . . . . Highest Temperature 14 | . . . 14 . . . . . Average Temperature 14 | . . . 14 . . . . . Received Heat Transfer 498 | . 24 42 108 90 180 36 18 . Siege Activations . | . . . . . . . . . Robots Corrupted . | . . . . . . . . . Combat Hostiles . | . . . . . . . . . Parts Fried . | . . . . . . . . . Impact Corruptions . | . . . . . . . . . Robots Melted . | . . . . . . . . . Combat Hostiles . | . . . . . . . . . Parts Melted . | . . . . . . . . . Heat Transferred . | . . . . . . . . . Parts Sabotaged . | . . . . . . . . . Parts Stolen . | . . . . . . . . . Parts Stripped . | . . . . . . . . . Power Chain Reactions . | . . . . . . . . . Alert | -11 -10 -9 -8 -7 -6 -5 -4 -4 ------- Run | Yrd Mat Mat Mat Fac Fac Fac Fac Upp Peak Influence 312 | . 15 20 113 86 312 152 164 . Initial 152 | . . 5 8 51 42 152 74 . Average 117 | . 9 11 24 68 173 152 127 . Maximum Alert Level 1 | . . . . . 1 . . . Low Security (%) 78 | 100 100 100 100 100 55 100 100 . Level 1 21 | . . . . . 44 . . . Level 2 . | . . . . . . . . . Level 3 . | . . . . . . . . . Level 4 . | . . . . . . . . . Level 5 . | . . . . . . . . . High Security . | . . . . . . . . . Max Security . | . . . . . . . . . Squads Dispatched 7 | . 1 . 2 2 2 . . . Investigation 1 | . . . 1 . . . . . Extermination . | . . . . . . . . . Reinforcement 6 | . 1 . 1 2 2 . . . Assault . | . . . . . . . . . Garrison . | . . . . . . . . . Intercept . | . . . . . . . . . Searches Triggered . | . . . . . . . . . Construction Impeded 1 | . . . . 1 . . . . Haulers Reinforced . | . . . . . . . . . Active Scanning Responses . | . . . . . . . . . Cargo Convoy Interrupts . | . . . . . . . . . Stealth | -11 -10 -9 -8 -7 -6 -5 -4 -4 --------- Run | Yrd Mat Mat Mat Fac Fac Fac Fac Upp Distress Signals 3 | . . 1 2 . . . . . Communications Jammed . | . . . . . . . . . Distress Signals . | . . . . . . . . . Times Spotted 77 | . 7 13 11 6 18 2 13 7 Peak Tracking Total 13 | . 6 13 12 5 5 2 10 6 Tactical Retreats 10 | . . . 1 . 7 . 1 1 Traps | -11 -10 -9 -8 -7 -6 -5 -4 -4 ------- Run | Yrd Mat Mat Mat Fac Fac Fac Fac Upp Traps Triggered 7 | . 3 . 1 . 3 . . . Indirectly . | . . . . . . . . . Trap Hack Attempts . | . . . . . . . . . Triggered . | . . . . . . . . . Disarmed . | . . . . . . . . . Reprogrammed . | . . . . . . . . . Reused . | . . . . . . . . . Traps Extracted . | . . . . . . . . . Installed . | . . . . . . . . . Triggered . | . . . . . . . . . Machines | -11 -10 -9 -8 -7 -6 -5 -4 -4 ---------- Run | Yrd Mat Mat Mat Fac Fac Fac Fac Upp Machines Disabled . | . . . . . . . . . Max in Single Turn . | . . . . . . . . . Machines Repaired . | . . . . . . . . . Machines Dismantled . | . . . . . . . . . Machines Sabotaged . | . . . . . . . . . Overloaded Fab Kills . | . . . . . . . . . Hacking | -11 -10 -9 -8 -7 -6 -5 -4 -4 --------- Run | Yrd Mat Mat Mat Fac Fac Fac Fac Upp Machines Accessed . | . . . . . . . . . Terminals . | . . . . . . . . . Fabricators . | . . . . . . . . . Repair Stations . | . . . . . . . . . Recycling Units . | . . . . . . . . . Scanalyzers . | . . . . . . . . . Garrison Access . | . . . . . . . . . Total Hacks . | . . . . . . . . . Successful . | . . . . . . . . . Failed . | . . . . . . . . . Catastrophic . | . . . . . . . . . Database Lockouts . | . . . . . . . . . Manual . | . . . . . . . . . Terminals . | . . . . . . . . . Fabricators . | . . . . . . . . . Repair Stations . | . . . . . . . . . Recycling Units . | . . . . . . . . . Scanalyzers . | . . . . . . . . . Garrison Access . | . . . . . . . . . Terminal Hacks . | . . . . . . . . . Fabricator Hacks . | . . . . . . . . . Repair Station Hacks . | . . . . . . . . . Recycling Unit Hacks . | . . . . . . . . . Scanalyzer . | . . . . . . . . . Garrison Access Hacks . | . . . . . . . . . Unauthorized Hacks . | . . . . . . . . . Terminals . | . . . . . . . . . Fabricators . | . . . . . . . . . Repair Stations . | . . . . . . . . . Recycling Units . | . . . . . . . . . Scanalyzers . | . . . . . . . . . Garrison Access . | . . . . . . . . . Data Cores Recovered . | . . . . . . . . . Used . | . . . . . . . . . Hacking Detections . | . . . . . . . . . Full Trace Events . | . . . . . . . . . Feedback Events . | . . . . . . . . . Feedback Blocked . | . . . . . . . . . Robot Schematics Acquired . | . . . . . . . . . Robots Built . | . . . . . . . . . Authchips . | . . . . . . . . . Time . | . . . . . . . . . Total Robot Build Rating . | . . . . . . . . . Part Schematics Acquired . | . . . . . . . . . Parts Built . | . . . . . . . . . Authchips . | . . . . . . . . . Time . | . . . . . . . . . Total Part Build Rating . | . . . . . . . . . Parts Repaired . | . . . . . . . . . Time . | . . . . . . . . . Parts Recycled . | . . . . . . . . . Recycled Matter . | . . . . . . . . . Retrieved Matter . | . . . . . . . . . Retrieved Components . | . . . . . . . . . Parts Scanalyzed . | . . . . . . . . . Part Schematics Acquired . | . . . . . . . . . Parts Damaged . | . . . . . . . . . Bothacking | -11 -10 -9 -8 -7 -6 -5 -4 -4 ------------ Run | Yrd Mat Mat Mat Fac Fac Fac Fac Upp Used RIF Installer . | . . . . . . . . . Robots Hacked . | . . . . . . . . . Non-combat . | . . . . . . . . . Combat . | . . . . . . . . . Robot Hacks Applied . | . . . . . . . . . Relay Couplers Released . | . . . . . . . . . Fabnet Peak Effective % . | . . . . . . . . . Robots Rewired . | . . . . . . . . . Allies Hacked . | . . . . . . . . . Hacks Repelled . | . . . . . . . . . Allies | -11 -10 -9 -8 -7 -6 -5 -4 -4 -------- Run | Yrd Mat Mat Mat Fac Fac Fac Fac Upp Total Allies . | . . . . . . . . . Largest Group . | . . . . . . . . . Highest-Rated Group . | . . . . . . . . . Highest-Rated Ally . | . . . . . . . . . Total Orders . | . . . . . . . . . Ally Attacks . | . . . . . . . . . Total Damage . | . . . . . . . . . Kills . | . . . . . . . . . Allies Corrupted . | . . . . . . . . . Allies Melted . | . . . . . . . . . Intel | -11 -10 -9 -8 -7 -6 -5 -4 -4 ------- Run | Yrd Mat Mat Mat Fac Fac Fac Fac Upp Robot Analysis Total . | . . . . . . . . . Derelict Logs Recovered . | . . . . . . . . . Drone Launches . | . . . . . . . . . Drone Recoveries . | . . . . . . . . . Exploration | -11 -10 -9 -8 -7 -6 -5 -4 -4 ------------- Run | Yrd Mat Mat Mat Fac Fac Fac Fac Upp Turns Passed 815 | 10 35 73 70 87 368 56 73 43 Spaces Moved 1368 | 21 64 145 139 123 539 110 146 81 Core 1368 | 21 64 145 139 123 539 110 146 81 Treads . | . . . . . . . . . Legs . | . . . . . . . . . Wheels . | . . . . . . . . . Hover . | . . . . . . . . . Flight . | . . . . . . . . . Fastest Speed 50 | 50 50 50 50 50 50 50 50 50 Average Speed 50 | 50 50 50 50 50 50 50 50 50 Slowest Speed 50 | 50 50 50 50 50 50 50 50 50 Overloaded Moves . | . . . . . . . . . Propulsion Burnouts . | . . . . . . . . . Robots Hopped . | . . . . . . . . . Cave-ins Triggered . | . . . . . . . . . Exploration Rate (%) 13 | 4 20 22 21 4 18 3 8 17 Regions Visited 8 Branch Regions 1 Pre-discovered Areas . | . . . . . . . . . Known Exits Taken . | . . . . . . . . . Unknown Exits Taken 8 | 1 1 1 1 1 1 1 1 . Scrap Searched 1 | . . . . . . . . 1 Spaces Dug . | . . . . . . . . . Terrain Destroyed . | . . . . . . . . . Melee . | . . . . . . . . . Projectile . | . . . . . . . . . AOE . | . . . . . . . . . Terrain Rammed 3 | . . . . . . . . 3 Walls Destroyed . | . . . . . . . . . Machines Disabled . | . . . . . . . . . Actions | -11 -10 -9 -8 -7 -6 -5 -4 -4 --------- Run | Yrd Mat Mat Mat Fac Fac Fac Fac Upp Total 1489 | 20 66 144 138 147 636 110 145 83 Wait 71 | . . . . . 71 . . . Move 1360 | 20 63 144 138 122 538 109 145 81 Hop . | . . . . . . . . . Pick Up . | . . . . . . . . . Fast Attach . | . . . . . . . . . Attach . | . . . . . . . . . Detach . | . . . . . . . . . Swap . | . . . . . . . . . Drop . | . . . . . . . . . Fire . | . . . . . . . . . Melee . | . . . . . . . . . Ram 46 | . 3 . . 25 15 1 . 2 Kick . | . . . . . . . . . Crush . | . . . . . . . . . Escape Stasis 12 | . . . . . 12 . . . Rewire . | . . . . . . . . . Trap . | . . . . . . . . . Miscellaneous . | . . . . . . . . . Route ------- -11/Scrapyard -10/Materials -9/Materials -8/Materials -7/Factory -6/Factory -5/Factory -4/Factory -4/Upper Caves History --------- Turn | Location | Event 2 | -11/Scrapyard | Met Revision 17 5 | -11/Scrapyard | Discovered new exit (range 12) 11 | -11/Scrapyard | Entered Materials 40 | -10/Materials | Core integrity fell below 50% 41 | -10/Materials | Discovered new exit (range 11) 46 | -10/Materials | Entered another Materials area 46 | -9/Materials | Evolved 2 slots: Weapon x2 117 | -9/Materials | Discovered new exit (range 5) 119 | -9/Materials | Entered another Materials area 119 | -8/Materials | Evolved 2 slots: Weapon x2 177 | -8/Materials | Core integrity fell below 50% 181 | -8/Materials | Discovered new exit (range 16) 189 | -8/Materials | Entered Factory 189 | -7/Factory | Evolved 2 slots: Weapon x2 270 | -7/Factory | Discovered new exit (range 12) 276 | -7/Factory | Entered another Factory area 276 | -6/Factory | Evolved 2 slots: Weapon x2 305 | -6/Factory | Build established: Mutant 599 | -6/Factory | Core integrity fell below 50% 638 | -6/Factory | Discovered new exit (range 12) 644 | -6/Factory | Entered another Factory area 644 | -5/Factory | Evolved 2 slots: Weapon x2 693 | -5/Factory | Discovered new exit (range 15) 700 | -5/Factory | Entered another Factory area 700 | -4/Factory | Evolved 2 slots: Weapon x2 767 | -4/Factory | Discovered new exit (range 13) 773 | -4/Factory | Entered Upper Caves 775 | -4/Upper Caves | Core integrity fell below 50% 812 | -4/Upper Caves | Core integrity fell below 20% 816 | -4/Upper Caves | Core destroyed Last Messages --------------- 00767_ Penetrated by Slug. 00768_ K-01 Serf pushes Y-64 Sentinel. 00771_ Penetrated by Slug. 00772_ K-01 Serf pushes Y-64 Sentinel. LOCATION=UNKNOWN GOAL=ESCAPE 00778_ Searching scrap... 00778_ Found Bore Cannon. 00778_ Found 50 Matter. 00779_ Acquired 18 matter. 00805_ S-27 Virus misfires. 00807_ P-70 Sage resets S-27 Virus, system corruption cleaned. 00814_ Slammed into Wall. 00814_ Destabilizing: Core damaged (-34). 00815_ Slammed into Wall. 00815_ Destabilizing: System corrupted (+1). 00815_ Destabilizing: System corrupted (+2). 00815_ P-70 Sage resets P-70 Sage, system corruption cleaned. 00816_ Slammed into Wall. 00816_ Destabilizing: Core damaged (-57). Map ----- +----------------------------------------------------+ | | | ?????????????????????????????????????????????????? | | ?????????????????????????????????????????????????? | | ?????????????????????????????????????????????????? | | ?????????????????????????????????????????????????? | | ?????????????????????????????????????????????????? | | ?????????????????????????????????????????????????? | | ?????????????????????????????????????????????????? | | ?????????????????????????????????????????????????? | | ?????????????????????????????????????????????????? | | ?????????????????????????????????????????????????? | | ?????????????????????????????????????????????????? | | ?????????????????????????????????????????????????? | | ?????????????????????????????????????????????????? | | ?????????????????????????????????????????????????? | | ?????????????????###????????###??????????????????? | | ????????????????## #???????## #####??????????????? | | ????????????????? ##?????## ## #??????????????? | | ????????????????? ##????# #??????????????? | | ?????????????????# #????# #??????????????? | | ???????????????### #????# ####???????????? | | ?????????????### #????## ##??????????? | | ????????????## #??????# s ##?????????? | | ???????????## ##????## s ### #?????????? | | ??????????## ###### ##?## #?????????? | | ?????????## s @ p##??## ##?????????? | | ?????????# s p#??## ###????????? | | ????????## ## #### ## #????????? | | ???????## ## ### ## ## #????????? | | #?????## #### #?#### ## ##???????? | | #????# ##?## #????# #???????? | | #???# #??# #???# #???????? | | ##?## #??# #??## ## ##??????? | | #?# ##??# #### ## #??????? | | ## ##??# #??????? | | # ##?##?# #??????? | | # ### #?# ### ##??????? | | #?# ##?## ###???????? | | ## ###?? #???## ##?????????? | | ??## ##### ????#### #####??????? | | ?????## ## ???????# ##?????? | | ??????#### ## ##? ?? #?????? | | ?????????#### #????? ## #?????? | | ???????###??#% #????? ### ### ##?????? | | ??????## ##?# ]#????????# #?## ####??????? | | ????### ### #????????## #???##?????????? | | ???## ## #????## #??????????????? | | ???# #??????#### #??????????????? | | ???###### #?????????# #??????????????? | | ????????## ######?????????# #??????????????? | +----------------------------------------------------+ Best States ------------- Heat Dissipation 43 Energy Generation 5 Energy Capacity 100 Matter Stores 300 Matter Capacity 300 Sight Range 16 Terrain Scan Density 10 Evasion (%) 50 Item Schematics ----------------- None Robot Schematics ------------------ None Fabricated ------------ Nothing Alien Tech Used ----------------- None Achievements -------------- None Challenges ------------ None Game ------ Seed SurgeIntegratedNetwork Manual? 0 Play Time 00:08:17 Cumulative 30.7 hours Start 2024.10.06 @ 22:41:49 End 2024.10.06 @ 22:49:28 Sessions 1 Manual Loads 0 Difficulty Rogue Special Mode None Game No. 114 Rogue 114 Adventurer 0 Explorer 0 Win Type - Total 0 Types 0/0/0/0/0/0/0/0/0 Lore% 42 Gallery% 29 Achievement% 33 Wizard Run 0 Options --------- Layout 0 ASCII 0 Keyboard 0 Movement Arrows Keybinds 0 Fullscreen 1 Font 24/Terminus Map View 64x52 Zoom Use 0% Tactical HUD 1 Map Filters NONE Filters NONE Steam X RUN: 8e669a73-245e-472a-83c3-4216addc2dcf